[Event "Titled Tuesday Blitz June 14 Late 2022"]
[White "Papp, Levente"]
[Black "Paravyan, David"]
[WhiteFideId "751243"]
[BlackFideId "4194985"]
[WhiteElo "2308"]
[BlackElo "2569"]
[Result "0-1"]
[Round "05"]
[TimeControl "180+1"]
[Date "2022.06.14"]
[WhiteClock "0:00:04"]
[BlackClock "0:00:47"]

1. Nf3 {[%clk 0:03:00]}  Nf6 {[%clk 0:02:58]} 2. g3 {[%clk 0:02:59]}  g6 {[%clk 0:02:58]} 3. b3 {[%clk 0:02:59]}  Bg7 {[%clk 0:02:59]} 4. Bb2 {[%clk 0:02:59]}  b6 {[%clk 0:02:59]} 5. Bg2 {[%clk 0:02:59]}  Bb7 {[%clk 0:02:59]} 6. O-O {[%clk 0:03:00]}  O-O {[%clk 0:02:59]} 7. c4 {[%clk 0:02:57]}  c5 {[%clk 0:03:00]} 8. Nc3 {[%clk 0:02:56]}  d5 {[%clk 0:03:00]} 9. cxd5 {[%clk 0:02:56]}  Nxd5 {[%clk 0:03:00]} 10. Qc1 {[%clk 0:02:39]}  Nc7 {[%clk 0:02:47]} 11. Na4 {[%clk 0:02:23]}  Bxb2 {[%clk 0:02:43]} 12. Qxb2 {[%clk 0:02:24]}  Ne6 {[%clk 0:02:42]} 13. Rfd1 {[%clk 0:02:17]}  Nc6 {[%clk 0:02:41]} 14. e3 {[%clk 0:02:10]}  Qd3 {[%clk 0:02:38]} 15. Qc3 {[%clk 0:02:01]}  Nb4 {[%clk 0:02:37]} 16. Nb2 {[%clk 0:01:58]}  Qe2 {[%clk 0:02:02]} 17. Re1 {[%clk 0:01:35]}  Qxf3 {[%clk 0:02:02]} 18. Bxf3 {[%clk 0:01:34]}  Bxf3 {[%clk 0:02:02]} 19. h3 {[%clk 0:01:24]}  Rfd8 {[%clk 0:01:57]} 20. a3 {[%clk 0:01:15]}  Nd5 {[%clk 0:01:56]} 21. Qe5 {[%clk 0:01:15]}  Nf6 {[%clk 0:01:48]} 22. d3 {[%clk 0:01:11]}  Rd5 {[%clk 0:01:45]} 23. Qc3 {[%clk 0:01:11]}  Rh5 {[%clk 0:01:44]} 24. h4 {[%clk 0:01:01]}  g5 {[%clk 0:01:44]} 25. e4 {[%clk 0:00:24]}  gxh4 {[%clk 0:01:35]} 26. Re3 {[%clk 0:00:24]}  Nd4 {[%clk 0:01:34]} 27. Rxf3 {[%clk 0:00:24]}  Nxf3+ {[%clk 0:01:35]} 28. Kg2 {[%clk 0:00:25]}  Nd4 {[%clk 0:01:34]} 29. Rh1 {[%clk 0:00:25]}  hxg3 {[%clk 0:01:32]} 30. Rxh5 {[%clk 0:00:23]}  Nxh5 {[%clk 0:01:33]} 31. fxg3 {[%clk 0:00:23]}  Nxg3 {[%clk 0:01:33]} 32. Qd2 {[%clk 0:00:21]}  Nh5 {[%clk 0:01:25]} 33. Qg5+ {[%clk 0:00:20]}  Ng7 {[%clk 0:01:25]} 34. Qxe7 {[%clk 0:00:20]}  b5 {[%clk 0:01:18]} 35. Qxc5 {[%clk 0:00:19]}  Nge6 {[%clk 0:01:17]} 36. Qe7 {[%clk 0:00:12]}  Rc8 {[%clk 0:01:16]} 37. Nd1 {[%clk 0:00:12]}  Rc2+ {[%clk 0:01:11]} 38. Nf2 {[%clk 0:00:13]}  a5 {[%clk 0:01:04]} 39. Qf6 {[%clk 0:00:10]}  b4 {[%clk 0:00:56]} 40. axb4 {[%clk 0:00:09]}  axb4 {[%clk 0:00:57]} 41. Kg3 {[%clk 0:00:09]}  h5 {[%clk 0:00:54]} 42. Nh3 {[%clk 0:00:08]}  Rd2 {[%clk 0:00:47]} 43. Nf4 {[%clk 0:00:07]}  Nxf4 {[%clk 0:00:47]} 44. Qd8+ {[%clk 0:00:03]}  Kh7 {[%clk 0:00:47]} 45. Kxf4 {[%clk 0:00:04]}  Ne6+ {[%clk 0:00:47]} 0-1


[Site "https://www.chess.com"]

[Event "Titled Tuesday Blitz June 14 Late 2022"]
[White "Remolar Gallen, Jose"]
[Black "Zhurbinsky, David"]
[WhiteFideId "2215187"]
[BlackFideId "2072904"]
[WhiteElo "2205"]
[BlackElo "2553"]
[Result "0-1"]
[Round "05"]
[TimeControl "180+1"]
[Date "2022.06.15"]
[WhiteClock "0:00:06"]
[BlackClock "0:00:03"]

1. d4 {[%clk 0:03:00]}  Nf6 {[%clk 0:02:59]} 2. c4 {[%clk 0:03:01]}  e6 {[%clk 0:03:00]} 3. Nf3 {[%clk 0:02:59]}  Bb4+ {[%clk 0:02:59]} 4. Nbd2 {[%clk 0:02:58]}  O-O {[%clk 0:02:59]} 5. a3 {[%clk 0:02:58]}  Bxd2+ {[%clk 0:02:59]} 6. Qxd2 {[%clk 0:02:57]}  d6 {[%clk 0:03:00]} 7. e3 {[%clk 0:02:57]}  Nbd7 {[%clk 0:03:01]} 8. Bd3 {[%clk 0:02:58]}  e5 {[%clk 0:03:01]} 9. Qc2 {[%clk 0:02:54]}  Qe7 {[%clk 0:03:00]} 10. dxe5 {[%clk 0:02:49]}  dxe5 {[%clk 0:03:01]} 11. Nd2 {[%clk 0:02:48]}  a5 {[%clk 0:02:57]} 12. O-O {[%clk 0:02:48]}  Nc5 {[%clk 0:02:57]} 13. Be2 {[%clk 0:02:45]}  a4 {[%clk 0:02:54]} 14. b4 {[%clk 0:02:41]}  axb3 {[%clk 0:02:47]} 15. Nxb3 {[%clk 0:02:41]}  Bf5 {[%clk 0:02:22]} 16. Qxf5 {[%clk 0:02:31]}  Nxb3 {[%clk 0:02:22]} 17. Rb1 {[%clk 0:02:32]}  Nxc1 {[%clk 0:02:19]} 18. Rfxc1 {[%clk 0:02:33]}  c6 {[%clk 0:01:37]} 19. Rc3 {[%clk 0:02:27]}  Rfd8 {[%clk 0:01:00]} 20. Rcb3 {[%clk 0:02:22]}  Rxa3 {[%clk 0:00:54]} 21. Rxb7 {[%clk 0:01:59]}  Qd6 {[%clk 0:00:34]} 22. g4 {[%clk 0:01:55]}  g6 {[%clk 0:00:25]} 23. Qf3 {[%clk 0:01:49]}  e4 {[%clk 0:00:23]} 24. Qh3 {[%clk 0:01:43]}  Ra2 {[%clk 0:00:19]} 25. Bf1 {[%clk 0:01:28]}  Qd2 {[%clk 0:00:19]} 26. Qh4 {[%clk 0:00:56]}  Nxg4 {[%clk 0:00:17]} 27. Rxf7 {[%clk 0:00:48]}  Kxf7 {[%clk 0:00:15]} 28. Rb7+ {[%clk 0:00:43]}  Rd7 {[%clk 0:00:05]} 29. Qxh7+ {[%clk 0:00:40]}  Kf6 {[%clk 0:00:03]} 30. Qh8+ {[%clk 0:00:27]}  Kf5 {[%clk 0:00:02]} 31. Qf8+ {[%clk 0:00:22]}  Kg5 {[%clk 0:00:02]} 32. Rxd7 {[%clk 0:00:09]}  Qxd7 {[%clk 0:00:01]} 33. Qf4+ {[%clk 0:00:06]}  Kh5 {[%clk 0:00:01]} 34. h4 {[%clk 0:00:06]}  Qf5 {[%clk 0:00:02]} 35. Qg3 {[%clk 0:00:05]}  Qxf2+ {[%clk 0:00:02]} 36. Qxf2 {[%clk 0:00:06]}  Rxf2 {[%clk 0:00:03]} 0-1


[Site "https://www.chess.com"]

[Event "Titled Tuesday Blitz June 14 Late 2022"]
[White "Riehle, Marco"]
[Black "Colpe, Malte"]
[WhiteFideId "12904392"]
[BlackFideId "24623075"]
[WhiteElo "2462"]
[BlackElo "2328"]
[Result "1-0"]
[Round "05"]
[TimeControl "180+1"]
[Date "2022.06.14"]
[WhiteClock "0:00:46"]
[BlackClock "0:00:01"]

1. e4 {[%clk 0:03:00]}  c5 {[%clk 0:02:53]} 2. a3 {[%clk 0:02:53]}  g6 {[%clk 0:02:52]} 3. h4 {[%clk 0:02:51]}  Nc6 {[%clk 0:02:47]} 4. h5 {[%clk 0:02:52]}  gxh5 {[%clk 0:02:47]} 5. Nc3 {[%clk 0:02:49]}  Nf6 {[%clk 0:02:43]} 6. Bc4 {[%clk 0:02:49]}  e6 {[%clk 0:02:42]} 7. d3 {[%clk 0:02:43]}  d5 {[%clk 0:02:39]} 8. Ba2 {[%clk 0:02:41]}  Rg8 {[%clk 0:02:30]} 9. g3 {[%clk 0:02:33]}  d4 {[%clk 0:02:21]} 10. Nce2 {[%clk 0:02:29]}  Bd7 {[%clk 0:02:11]} 11. Nf4 {[%clk 0:02:26]}  Bd6 {[%clk 0:01:49]} 12. Nxh5 {[%clk 0:02:23]}  Ng4 {[%clk 0:01:41]} 13. Bf4 {[%clk 0:02:07]}  Qa5+ {[%clk 0:01:29]} 14. b4 {[%clk 0:01:50]}  Qc7 {[%clk 0:01:27]} 15. Bxd6 {[%clk 0:01:43]}  Qxd6 {[%clk 0:01:26]} 16. b5 {[%clk 0:01:43]}  Ne7 {[%clk 0:01:04]} 17. a4 {[%clk 0:01:38]}  O-O-O {[%clk 0:01:01]} 18. Qd2 {[%clk 0:01:34]}  f5 {[%clk 0:00:54]} 19. O-O-O {[%clk 0:01:28]}  fxe4 {[%clk 0:00:52]} 20. dxe4 {[%clk 0:01:25]}  Ng6 {[%clk 0:00:40]} 21. f4 {[%clk 0:01:20]}  c4 {[%clk 0:00:27]} 22. Qxd4 {[%clk 0:01:14]}  Qa3+ {[%clk 0:00:27]} 23. Qb2 {[%clk 0:01:02]}  Qxb2+ {[%clk 0:00:21]} 24. Kxb2 {[%clk 0:01:02]}  Nf2 {[%clk 0:00:22]} 25. Ne2 {[%clk 0:00:56]}  Nxh1 {[%clk 0:00:16]} 26. Rxh1 {[%clk 0:00:57]}  Rgf8 {[%clk 0:00:08]} 27. Bxc4 {[%clk 0:00:54]}  a6 {[%clk 0:00:07]} 28. Ng7 {[%clk 0:00:51]}  e5 {[%clk 0:00:03]} 29. f5 {[%clk 0:00:51]}  Ne7 {[%clk 0:00:01]} 30. Be6 {[%clk 0:00:45]}  axb5 {[%clk 0:00:01]} 31. axb5 {[%clk 0:00:45]}  Bxe6 {[%clk 0:00:01]} 32. Nxe6 {[%clk 0:00:46]} 1-0


[Site "https://www.chess.com"]

[Event "Titled Tuesday Blitz June 14 Late 2022"]
[White "Roman, Rodrigo"]
[Black "Mortazavi, Ali"]
[WhiteFideId "3701220"]
[BlackFideId "401323"]
[WhiteElo "2001"]
[BlackElo "2339"]
[Result "1-0"]
[Round "05"]
[TimeControl "180+1"]
[Date "2022.06.15"]
[WhiteClock "0:00:30"]
[BlackClock "0:00:14"]

1. e4 {[%clk 0:02:53]}  c6 {[%clk 0:02:57]} 2. d4 {[%clk 0:02:50]}  d5 {[%clk 0:02:57]} 3. exd5 {[%clk 0:02:48]}  cxd5 {[%clk 0:02:57]} 4. Bd3 {[%clk 0:02:49]}  Nc6 {[%clk 0:02:58]} 5. c3 {[%clk 0:02:49]}  Qc7 {[%clk 0:02:57]} 6. h3 {[%clk 0:02:49]}  g6 {[%clk 0:02:57]} 7. Nf3 {[%clk 0:02:49]}  Bf5 {[%clk 0:02:57]} 8. O-O {[%clk 0:02:45]}  Nf6 {[%clk 0:02:57]} 9. Re1 {[%clk 0:02:41]}  e6 {[%clk 0:02:52]} 10. Bg5 {[%clk 0:02:39]}  Be7 {[%clk 0:02:49]} 11. Ne5 {[%clk 0:02:34]}  Nxe5 {[%clk 0:02:45]} 12. dxe5 {[%clk 0:02:32]}  Ne4 {[%clk 0:02:43]} 13. Bxe7 {[%clk 0:02:31]}  Qxe7 {[%clk 0:02:41]} 14. Qa4+ {[%clk 0:02:29]}  Kf8 {[%clk 0:02:41]} 15. Bxe4 {[%clk 0:02:16]}  Bxe4 {[%clk 0:02:38]} 16. Nd2 {[%clk 0:02:16]}  Bd3 {[%clk 0:02:35]} 17. Nf3 {[%clk 0:02:13]}  Kg7 {[%clk 0:02:33]} 18. Qf4 {[%clk 0:02:11]}  h6 {[%clk 0:02:30]} 19. Nd4 {[%clk 0:02:10]}  g5 {[%clk 0:02:27]} 20. Qg3 {[%clk 0:01:55]}  Bg6 {[%clk 0:02:26]} 21. f4 {[%clk 0:01:54]}  gxf4 {[%clk 0:02:24]} 22. Qxf4 {[%clk 0:01:53]}  Qg5 {[%clk 0:02:21]} 23. Rf1 {[%clk 0:01:51]}  Qxf4 {[%clk 0:02:17]} 24. Rxf4 {[%clk 0:01:51]}  a6 {[%clk 0:02:18]} 25. a4 {[%clk 0:01:50]}  Rac8 {[%clk 0:02:18]} 26. a5 {[%clk 0:01:48]}  Rc5 {[%clk 0:02:18]} 27. Ra3 {[%clk 0:01:48]}  Rhc8 {[%clk 0:02:17]} 28. g4 {[%clk 0:01:44]}  Rb8 {[%clk 0:02:12]} 29. Kf2 {[%clk 0:01:41]}  Be4 {[%clk 0:02:03]} 30. Ke3 {[%clk 0:01:40]}  b5 {[%clk 0:01:59]} 31. axb6 {[%clk 0:01:32]}  Rxb6 {[%clk 0:01:59]} 32. Rf2 {[%clk 0:01:32]}  Rc7 {[%clk 0:01:52]} 33. Ra1 {[%clk 0:01:26]}  Bg6 {[%clk 0:01:44]} 34. h4 {[%clk 0:01:25]}  Rcb7 {[%clk 0:01:40]} 35. b4 {[%clk 0:01:20]}  Rc7 {[%clk 0:01:40]} 36. Kd2 {[%clk 0:01:19]}  Be4 {[%clk 0:01:35]} 37. Raf1 {[%clk 0:01:16]}  Rb8 {[%clk 0:01:34]} 38. Re2 {[%clk 0:01:07]}  Rbc8 {[%clk 0:01:29]} 39. Re3 {[%clk 0:01:07]}  Rb7 {[%clk 0:01:18]} 40. Ra1 {[%clk 0:01:06]}  Rb6 {[%clk 0:01:18]} 41. Ra5 {[%clk 0:01:06]}  Kh7 {[%clk 0:01:18]} 42. Rg3 {[%clk 0:01:04]}  Rg8 {[%clk 0:01:16]} 43. Ke3 {[%clk 0:01:02]}  h5 {[%clk 0:01:05]} 44. Kf4 {[%clk 0:00:57]}  hxg4 {[%clk 0:00:59]} 45. Rxg4 {[%clk 0:00:57]}  Rxg4+ {[%clk 0:00:59]} 46. Kxg4 {[%clk 0:00:58]}  Bd3 {[%clk 0:01:00]} 47. Rc5 {[%clk 0:00:56]}  Rb8 {[%clk 0:00:58]} 48. Kg5 {[%clk 0:00:48]}  Kg7 {[%clk 0:00:55]} 49. Rc7 {[%clk 0:00:47]}  Re8 {[%clk 0:00:48]} 50. h5 {[%clk 0:00:47]}  Bh7 {[%clk 0:00:42]} 51. h6+ {[%clk 0:00:47]}  Kf8 {[%clk 0:00:42]} 52. Kf6 {[%clk 0:00:46]}  Bg6 {[%clk 0:00:37]} 53. Rxf7+ {[%clk 0:00:44]}  Kg8 {[%clk 0:00:18]} 54. Rg7+ {[%clk 0:00:43]}  Kh8 {[%clk 0:00:18]} 55. Kxg6 {[%clk 0:00:42]}  a5 {[%clk 0:00:18]} 56. Rh7+ {[%clk 0:00:37]}  Kg8 {[%clk 0:00:18]} 57. Ra7 {[%clk 0:00:36]}  axb4 {[%clk 0:00:18]} 58. cxb4 {[%clk 0:00:36]}  Kh8 {[%clk 0:00:19]} 59. Nf3 {[%clk 0:00:36]}  Rg8+ {[%clk 0:00:17]} 60. Rg7 {[%clk 0:00:31]}  Rf8 {[%clk 0:00:15]} 61. Ng5 {[%clk 0:00:31]}  Rf6+ {[%clk 0:00:14]} 62. exf6 {[%clk 0:00:30]} 1-0


[Site "https://www.chess.com"]

[Event "Titled Tuesday Blitz June 14 Late 2022"]
[White "Rosen, Eric"]
[Black "Sjugirov, Sanan"]
[WhiteFideId "2032562"]
[BlackFideId "4189302"]
[WhiteElo "2362"]
[BlackElo "2602"]
[Result "0-1"]
[Round "05"]
[TimeControl "180+1"]
[Date "2022.06.14"]
[WhiteClock "0:00:03"]
[BlackClock "0:00:26"]

1. d4 {[%clk 0:03:00]}  Nf6 {[%clk 0:03:00]} 2. Bf4 {[%clk 0:03:00]}  e6 {[%clk 0:02:57]} 3. e3 {[%clk 0:03:00]}  c5 {[%clk 0:02:57]} 4. Nf3 {[%clk 0:02:59]}  cxd4 {[%clk 0:02:58]} 5. exd4 {[%clk 0:03:00]}  b6 {[%clk 0:02:58]} 6. Nbd2 {[%clk 0:02:56]}  Bb7 {[%clk 0:02:58]} 7. c3 {[%clk 0:02:53]}  Be7 {[%clk 0:02:59]} 8. Bd3 {[%clk 0:02:53]}  d6 {[%clk 0:02:59]} 9. O-O {[%clk 0:02:54]}  Nbd7 {[%clk 0:02:58]} 10. Re1 {[%clk 0:02:53]}  O-O {[%clk 0:02:58]} 11. h3 {[%clk 0:02:53]}  a6 {[%clk 0:02:55]} 12. a4 {[%clk 0:02:53]}  Re8 {[%clk 0:02:54]} 13. Bg3 {[%clk 0:02:48]}  Qc7 {[%clk 0:02:52]} 14. Qc2 {[%clk 0:02:36]}  h6 {[%clk 0:02:48]} 15. Rad1 {[%clk 0:02:16]}  Bc6 {[%clk 0:02:46]} 16. Qb3 {[%clk 0:02:15]}  Qb7 {[%clk 0:02:44]} 17. Bf1 {[%clk 0:02:07]}  b5 {[%clk 0:02:40]} 18. axb5 {[%clk 0:02:05]}  axb5 {[%clk 0:02:41]} 19. Ra1 {[%clk 0:02:05]}  Bf8 {[%clk 0:02:32]} 20. Nh2 {[%clk 0:01:54]}  Nh5 {[%clk 0:02:16]} 21. Ng4 {[%clk 0:00:49]}  Nxg3 {[%clk 0:02:11]} 22. fxg3 {[%clk 0:00:50]}  Be7 {[%clk 0:01:49]} 23. Ne3 {[%clk 0:00:43]}  Rxa1 {[%clk 0:01:40]} 24. Rxa1 {[%clk 0:00:43]}  Bg5 {[%clk 0:01:41]} 25. Re1 {[%clk 0:00:42]}  h5 {[%clk 0:01:33]} 26. h4 {[%clk 0:00:42]}  Bh6 {[%clk 0:01:33]} 27. Bd3 {[%clk 0:00:42]}  Nf6 {[%clk 0:01:27]} 28. Ndf1 {[%clk 0:00:34]}  Rb8 {[%clk 0:01:26]} 29. Qc2 {[%clk 0:00:29]}  b4 {[%clk 0:01:15]} 30. c4 {[%clk 0:00:29]}  Qa7 {[%clk 0:01:14]} 31. c5 {[%clk 0:00:27]}  Rd8 {[%clk 0:01:11]} 32. Be2 {[%clk 0:00:15]}  Be4 {[%clk 0:00:59]} 33. Qc4 {[%clk 0:00:14]}  Rc8 {[%clk 0:00:54]} 34. Rc1 {[%clk 0:00:12]}  Nd5 {[%clk 0:00:51]} 35. Qb3 {[%clk 0:00:03]}  dxc5 {[%clk 0:00:51]} 36. Nxd5 {[%clk 0:00:01]}  Bxd5 {[%clk 0:00:50]} 37. Qc2 {[%clk 0:00:01]}  b3 {[%clk 0:00:47]} 38. Qd1 {[%clk 0:00:01]}  Bxc1 {[%clk 0:00:45]} 39. Qxc1 {[%clk 0:00:02]}  Rc7 {[%clk 0:00:37]} 40. Kh2 {[%clk 0:00:02]}  cxd4 {[%clk 0:00:36]} 41. Qd1 {[%clk 0:00:02]}  g6 {[%clk 0:00:33]} 42. Bf3 {[%clk 0:00:02]}  Qc5 {[%clk 0:00:31]} 43. g4 {[%clk 0:00:02]}  hxg4 {[%clk 0:00:31]} 44. Bxg4 {[%clk 0:00:03]}  Qc2 {[%clk 0:00:27]} 45. Nd2 {[%clk 0:00:04]}  Qxd1 {[%clk 0:00:27]} 46. Bxd1 {[%clk 0:00:05]}  d3 {[%clk 0:00:27]} 47. Kg3 {[%clk 0:00:03]}  Rc2 {[%clk 0:00:26]} 48. Nxb3 {[%clk 0:00:03]}  Bxb3 {[%clk 0:00:26]} 0-1


[Site "https://www.chess.com"]

[Event "Titled Tuesday Blitz June 14 Late 2022"]
[White "Sanal, Vahap"]
[Black "Xiong, Jeffery"]
[WhiteFideId "6300545"]
[BlackFideId "2047640"]
[WhiteElo "2574"]
[BlackElo "2714"]
[Result "0-1"]
[Round "05"]
[TimeControl "180+1"]
[Date "2022.06.14"]
[WhiteClock "0:00:01"]
[BlackClock "0:01:09"]

1. e4 {[%clk 0:02:59]}  e5 {[%clk 0:03:00]} 2. Nc3 {[%clk 0:02:59]}  Nf6 {[%clk 0:03:00]} 3. Bc4 {[%clk 0:02:56]}  Nxe4 {[%clk 0:03:00]} 4. Qh5 {[%clk 0:02:55]}  Nd6 {[%clk 0:03:01]} 5. Qxe5+ {[%clk 0:02:50]}  Qe7 {[%clk 0:02:51]} 6. Qxe7+ {[%clk 0:02:51]}  Bxe7 {[%clk 0:02:52]} 7. Be2 {[%clk 0:02:51]}  Nf5 {[%clk 0:02:48]} 8. Nf3 {[%clk 0:02:51]}  c6 {[%clk 0:02:49]} 9. g4 {[%clk 0:02:50]}  Nh4 {[%clk 0:02:49]} 10. Nxh4 {[%clk 0:02:51]}  Bxh4 {[%clk 0:02:50]} 11. Ne4 {[%clk 0:02:51]}  d5 {[%clk 0:02:44]} 12. Nd6+ {[%clk 0:02:49]}  Ke7 {[%clk 0:02:44]} 13. Nxc8+ {[%clk 0:02:46]}  Rxc8 {[%clk 0:02:45]} 14. d4 {[%clk 0:02:46]}  Nd7 {[%clk 0:02:43]} 15. O-O {[%clk 0:02:45]}  Re8 {[%clk 0:02:43]} 16. Bd3 {[%clk 0:02:44]}  h6 {[%clk 0:02:42]} 17. c3 {[%clk 0:02:42]}  Bg5 {[%clk 0:02:38]} 18. f4 {[%clk 0:02:41]}  Bh4 {[%clk 0:02:38]} 19. Rf3 {[%clk 0:02:32]}  Kf8 {[%clk 0:02:27]} 20. Bd2 {[%clk 0:02:28]}  Nf6 {[%clk 0:02:11]} 21. Rh3 {[%clk 0:01:38]}  g5 {[%clk 0:02:11]} 22. fxg5 {[%clk 0:01:26]}  hxg5 {[%clk 0:02:12]} 23. Rf1 {[%clk 0:00:58]}  Nxg4 {[%clk 0:02:11]} 24. Rhf3 {[%clk 0:00:58]}  Nh6 {[%clk 0:02:12]} 25. Rh3 {[%clk 0:00:41]}  Re6 {[%clk 0:02:06]} 26. Bf5 {[%clk 0:00:36]}  Nxf5 {[%clk 0:01:45]} 27. Rxf5 {[%clk 0:00:36]}  Rae8 {[%clk 0:01:45]} 28. Rhf3 {[%clk 0:00:17]}  R8e7 {[%clk 0:01:46]} 29. Bxg5 {[%clk 0:00:16]}  Rg6 {[%clk 0:01:45]} 30. Rg3 {[%clk 0:00:14]}  Re1+ {[%clk 0:01:43]} 31. Kf2 {[%clk 0:00:14]}  Bxg3+ {[%clk 0:01:41]} 32. hxg3 {[%clk 0:00:14]}  Rb1 {[%clk 0:01:41]} 33. b3 {[%clk 0:00:13]}  Rb2+ {[%clk 0:01:40]} 34. Kf3 {[%clk 0:00:13]}  Rc2 {[%clk 0:01:40]} 35. g4 {[%clk 0:00:10]}  Rxc3+ {[%clk 0:01:40]} 36. Kf4 {[%clk 0:00:10]}  Re6 {[%clk 0:01:34]} 37. Bf6 {[%clk 0:00:02]}  Re4+ {[%clk 0:01:34]} 38. Kg5 {[%clk 0:00:03]}  Rg3 {[%clk 0:01:35]} 39. Kh5 {[%clk 0:00:03]}  Rgxg4 {[%clk 0:01:28]} 40. Bg5 {[%clk 0:00:03]}  Rg2 {[%clk 0:01:16]} 41. Bf6 {[%clk 0:00:01]}  Ke8 {[%clk 0:01:13]} 42. Be5 {[%clk 0:00:01]}  Re1 {[%clk 0:01:09]} 0-1


[Site "https://www.chess.com"]

[Event "Titled Tuesday Blitz June 14 Late 2022"]
[White "Sarana, Alexey"]
[Black "Korchmar, Vasiliy"]
[WhiteFideId "24133795"]
[BlackFideId "24131750"]
[WhiteElo "2666"]
[BlackElo "2370"]
[Result "0-1"]
[Round "05"]
[TimeControl "180+1"]
[Date "2022.06.14"]
[WhiteClock "0:01:08"]
[BlackClock "0:00:23"]

1. d4 {[%clk 0:03:00]}  d5 {[%clk 0:03:00]} 2. c4 {[%clk 0:03:01]}  c6 {[%clk 0:03:00]} 3. Nf3 {[%clk 0:03:01]}  Nf6 {[%clk 0:03:01]} 4. Nc3 {[%clk 0:03:02]}  e6 {[%clk 0:02:59]} 5. e3 {[%clk 0:03:02]}  Nbd7 {[%clk 0:02:58]} 6. Qc2 {[%clk 0:03:02]}  Bd6 {[%clk 0:02:58]} 7. Be2 {[%clk 0:03:01]}  dxc4 {[%clk 0:02:58]} 8. Bxc4 {[%clk 0:03:02]}  O-O {[%clk 0:02:59]} 9. O-O {[%clk 0:03:02]}  e5 {[%clk 0:02:59]} 10. a3 {[%clk 0:02:59]}  exd4 {[%clk 0:02:56]} 11. exd4 {[%clk 0:02:53]}  Nb6 {[%clk 0:02:56]} 12. Ba2 {[%clk 0:02:53]}  Re8 {[%clk 0:02:50]} 13. Bg5 {[%clk 0:02:45]}  Be6 {[%clk 0:02:14]} 14. Bb1 {[%clk 0:02:44]}  Nbd7 {[%clk 0:02:06]} 15. Ne4 {[%clk 0:02:37]}  Be7 {[%clk 0:01:37]} 16. Nxf6+ {[%clk 0:02:36]}  Nxf6 {[%clk 0:01:38]} 17. Bxf6 {[%clk 0:02:36]}  Bxf6 {[%clk 0:01:39]} 18. Qxh7+ {[%clk 0:02:35]}  Kf8 {[%clk 0:01:40]} 19. Bf5 {[%clk 0:02:28]}  Bd5 {[%clk 0:01:37]} 20. Qh8+ {[%clk 0:02:02]}  Ke7 {[%clk 0:01:37]} 21. Rfe1+ {[%clk 0:01:58]}  Kd6 {[%clk 0:01:35]} 22. Qh3 {[%clk 0:01:57]}  Kc7 {[%clk 0:01:28]} 23. Rxe8 {[%clk 0:01:49]}  Qxe8 {[%clk 0:01:28]} 24. Qg3+ {[%clk 0:01:50]}  Kb6 {[%clk 0:01:24]} 25. Re1 {[%clk 0:01:50]}  Qb8 {[%clk 0:01:13]} 26. Ne5 {[%clk 0:01:49]}  Bxe5 {[%clk 0:00:44]} 27. dxe5 {[%clk 0:01:50]}  g6 {[%clk 0:00:41]} 28. Bc2 {[%clk 0:01:42]}  Qf8 {[%clk 0:00:41]} 29. b4 {[%clk 0:01:39]}  a5 {[%clk 0:00:40]} 30. Rb1 {[%clk 0:01:31]}  axb4 {[%clk 0:00:33]} 31. Rxb4+ {[%clk 0:01:32]}  Qxb4 {[%clk 0:00:32]} 32. h4 {[%clk 0:01:14]}  Rxa3 {[%clk 0:00:32]} 33. Qg5 {[%clk 0:01:13]}  Qe1+ {[%clk 0:00:27]} 34. Kh2 {[%clk 0:01:13]}  Qxf2 {[%clk 0:00:26]} 35. h5 {[%clk 0:01:10]}  gxh5 {[%clk 0:00:24]} 36. Bf5 {[%clk 0:01:08]}  Qxg2+ {[%clk 0:00:22]} 37. Qxg2 {[%clk 0:01:08]}  Bxg2 {[%clk 0:00:23]} 0-1


[Site "https://www.chess.com"]

[Event "Titled Tuesday Blitz June 14 Late 2022"]
[White "Shirov, Alexei"]
[Black "Janaszak, Dawid"]
[WhiteFideId "2209390"]
[BlackFideId "1119206"]
[WhiteElo "2678"]
[BlackElo "2199"]
[Result "1-0"]
[Round "05"]
[TimeControl "180+1"]
[Date "2022.06.14"]
[WhiteClock "0:01:20"]
[BlackClock "0:00:17"]

1. e4 {[%clk 0:03:00]}  c5 {[%clk 0:02:59]} 2. Nc3 {[%clk 0:03:00]}  Nc6 {[%clk 0:02:58]} 3. Nge2 {[%clk 0:03:00]}  g6 {[%clk 0:02:53]} 4. d4 {[%clk 0:02:59]}  cxd4 {[%clk 0:02:54]} 5. Nxd4 {[%clk 0:02:59]}  Bg7 {[%clk 0:02:55]} 6. Be3 {[%clk 0:03:00]}  Nf6 {[%clk 0:02:55]} 7. Bc4 {[%clk 0:03:00]}  O-O {[%clk 0:02:55]} 8. Bb3 {[%clk 0:03:01]}  Re8 {[%clk 0:02:55]} 9. Nxc6 {[%clk 0:02:55]}  dxc6 {[%clk 0:02:47]} 10. Qxd8 {[%clk 0:02:54]}  Rxd8 {[%clk 0:02:47]} 11. f3 {[%clk 0:02:52]}  Ne8 {[%clk 0:02:18]} 12. Ke2 {[%clk 0:02:49]}  Nd6 {[%clk 0:02:12]} 13. Rhd1 {[%clk 0:02:46]}  Be6 {[%clk 0:02:12]} 14. Bxe6 {[%clk 0:02:44]}  fxe6 {[%clk 0:02:13]} 15. Bd4 {[%clk 0:02:39]}  e5 {[%clk 0:01:54]} 16. Bc5 {[%clk 0:02:36]}  Kf7 {[%clk 0:01:52]} 17. a4 {[%clk 0:02:34]}  Ke6 {[%clk 0:01:50]} 18. a5 {[%clk 0:02:28]}  Bf6 {[%clk 0:01:40]} 19. Na4 {[%clk 0:02:23]}  h5 {[%clk 0:01:17]} 20. Bf2 {[%clk 0:02:14]}  Kf7 {[%clk 0:01:08]} 21. b3 {[%clk 0:02:10]}  Nb5 {[%clk 0:00:56]} 22. c4 {[%clk 0:02:08]}  Nd4+ {[%clk 0:00:54]} 23. Bxd4 {[%clk 0:02:06]}  Rxd4 {[%clk 0:00:45]} 24. Nc5 {[%clk 0:02:02]}  Rb8 {[%clk 0:00:41]} 25. Rxd4 {[%clk 0:01:59]}  exd4 {[%clk 0:00:42]} 26. Nd3 {[%clk 0:01:59]}  e5 {[%clk 0:00:38]} 27. b4 {[%clk 0:01:58]}  Re8 {[%clk 0:00:35]} 28. b5 {[%clk 0:01:47]}  cxb5 {[%clk 0:00:36]} 29. cxb5 {[%clk 0:01:46]}  Rc8 {[%clk 0:00:37]} 30. a6 {[%clk 0:01:42]}  bxa6 {[%clk 0:00:29]} 31. Rxa6 {[%clk 0:01:41]}  Rc2+ {[%clk 0:00:29]} 32. Kd1 {[%clk 0:01:38]}  Rxg2 {[%clk 0:00:28]} 33. Rxa7+ {[%clk 0:01:38]}  Ke6 {[%clk 0:00:24]} 34. b6 {[%clk 0:01:35]}  Bd8 {[%clk 0:00:21]} 35. b7 {[%clk 0:01:35]}  Bc7 {[%clk 0:00:21]} 36. Ra6+ {[%clk 0:01:24]}  Kd7 {[%clk 0:00:21]} 37. Nc5+ {[%clk 0:01:23]}  Ke8 {[%clk 0:00:20]} 38. Rc6 {[%clk 0:01:22]}  Kd8 {[%clk 0:00:17]} 39. Ne6+ {[%clk 0:01:21]}  Kd7 {[%clk 0:00:17]} 40. Rxc7+ {[%clk 0:01:20]} 1-0


[Site "https://www.chess.com"]